bitfinex/quotes_ETHUSD_20220113
["timestamp","ask_amount","ask_price","bid_price","bid_amount"]
[1642103299298,2.31210585,3258.7,3258.6,0.55559931]
[1642103299498,2.30301285,3258.7,3257.8,0.76714]
[1642103299699,2.31666024,3258.7,3257.7,0.30113685]
[1642103299898,0.009115,3258.6,3257.7,0.30113685]
[1642103300133,0.009115,3258.6,3258.3,1.20732508]
[1642103300334,0.009115,3258.6,3258.3,1.50732508]
[1642103300335,0.00341054,3258.5,3258.3,1.50732508]
[1642103300731,0.00284212,3258.4,3258.3,1.50732508]
[1642103301932,0.00284212,3258.4,3258.3,1.80732508]
[1642103302534,0.00284212,3258.4,3258.3,1.50732508]
[1642103302733,0.00284212,3258.4,3258.3,1.80732508]
[1642103303133,0.00284212,3258.4,3258.3,1.50732508]
[1642103304796,0.00284212,3258.4,3258.3,1.20732508]
[1642103305197,0.00284212,3258.4,3258.3,1.50732508]
[1642103305999,0.00284212,3258.4,3258.3,1.80732508]
[1642103306201,0.00284212,3258.4,3258.3,2.80732508]
[1642103306799,0.00284212,3258.4,3258.3,12.40732508]
[1642103307199,0.00284212,3258.4,3258.3,13.41832508]
[1642103308343,0.00284212,3258.4,3258.3,12.40732508]
[1642103308536,0.00284212,3258.4,3258.3,11.40732508]
[1642103308736,0.00284212,3258.4,3258.3,1.80732508]
[1642103309137,0.00284212,3258.4,3258.3,0.3]
[1642103309338,0.01194512,3258.4,3258.1,0.3]
[1642103309542,0.009121,3258.3,3258.1,0.3]
[1642103309739,0.0113947,3258.3,3258.0,1.16700393]
[1642103309937,0.00170527,3258.2,3258.0,1.16700393]
[1642103310136,0.00170527,3258.2,3258.1,4.17465065]
[1642103310339,0.009103,3258.4,3258.1,3.0]
[1642103310836,0.0022737,3258.3,3258.1,3.0]
[1642103311037,0.0022737,3258.3,3258.0,0.6]
[1642103311239,0.00170527,3258.2,3257.8,0.422656]
[1642103311487,0.009131,3258.0,3257.8,0.422656]
[1642103311690,0.01026185,3258.1,3257.8,0.122656]
[1642103312091,0.1227,3258.6,3257.9,0.017717]
[1642103312390,2.63813063,3258.2,3257.9,0.00113685]
[1642103313190,1.50303391,3258.2,3257.9,0.00113685]
[1642103313790,2.63813063,3258.6,3257.8,0.00170527]
[1642103313992,3.40541063,3258.6,3257.8,0.00170527]
[1642103314191,0.00227369,3258.5,3257.8,0.00170527]
[1642103314392,2.63813063,3258.1,3257.8,0.00170527]
[1642103314593,2.63813063,3258.1,3257.8,0.30170527]
[1642103314991,2.63813063,3258.1,3257.9,0.00113685]
[1642103315243,2.63813063,3258.3,3257.9,0.00113685]
[1642103315638,2.63926748,3258.3,3257.9,0.00113685]
[1642103316339,0.00113685,3258.3,3257.9,0.00113685]
[1642103319286,0.00113685,3258.3,3258.2,1.54840123]
[1642103319487,0.00113685,3258.3,3257.9,0.00113685]
[1642103320789,0.00113685,3258.3,3257.9,1.50695107]
[1642103320989,0.00113685,3258.3,3258.0,0.3]
[1642103321393,0.00113685,3258.3,3257.9,1.50695107]
[1642103321592,0.00113685,3258.3,3257.8,0.00170527]
[1642103322653,1.49402332,3258.1,3257.8,1.11157046]
[1642103322844,1.49402332,3258.1,3257.8,0.00170527]
[1642103323044,1.49402332,3258.1,3257.9,0.00113685]
[1642103323244,1.49402332,3258.1,3257.8,0.00170527]
[1642103323445,0.1227,3258.0,3257.8,0.00170527]
[1642103323645,1.49402332,3258.1,3257.8,0.00170527]
[1642103323846,2.63813063,3258.0,3257.8,0.00170527]
[1642103326047,2.63813063,3258.1,3257.8,0.00170527]
[1642103326247,3.02094467,3258.0,3257.8,0.00170527]
[1642103326487,3.8727,3257.9,3257.8,0.00170527]
[1642103326684,6.98621636,3257.9,3257.8,0.00170527]
[1642103327086,27.43521945,3257.9,3257.8,0.00170527]
[1642103327289,29.41227445,3257.9,3257.8,0.00170527]
[1642103327786,5.05,3257.8,3256.8,6.2]
[1642103327986,0.7676251,3257.3,3256.8,6.2]
[1642103328187,0.76764,3257.1,3256.9,0.00511581]
[1642103328386,1.60664,3257.1,3256.9,0.00511581]
[1642103328586,1.21814331,3257.0,3256.9,0.00511581]
[1642103328787,1.34094331,3257.0,3256.9,0.00511581]
[1642103329188,4.24300309,3257.0,3256.9,0.00511581]
[1642103329388,1.34094331,3257.0,3256.5,0.00738951]
[1642103329588,0.76772,3256.8,3256.5,0.00738951]
[1642103331236,1.64992,3256.8,3256.5,0.00738951]
[1642103331837,2.63813063,3256.7,3256.5,0.00738951]
[1642103332436,3.40588803,3256.7,3256.5,0.00738951]
[1642103334487,2.63813063,3256.6,3256.5,0.00738951]
[1642103336086,2.55441551,3256.6,3256.5,0.00738951]
[1642103336287,20.44441551,3256.6,3256.5,0.00738951]
[1642103337387,20.88641551,3256.6,3256.4,0.00010051]
[1642103337659,0.1228,3256.5,3256.4,0.00010051]
[1642103337945,0.442,3256.5,3256.4,0.00010051]
[1642103338140,18.332,3256.5,3256.4,0.00010051]
[1642103338540,18.332,3256.5,3255.5,0.09602104]
[1642103338742,0.7678443,3256.4,3255.5,0.09602104]
[1642103338941,0.76785,3256.2,3255.6,0.00511581]
[1642103339543,0.442,3256.5,3255.6,0.00511581]
[1642103340143,0.7678,3256.4,3256.1,1.4364538]
[1642103340549,0.1228,3256.8,3256.2,0.00170527]
[1642103340746,0.1228,3257.1,3256.2,0.00170527]
[1642103340944,0.00113685,3256.7,3256.2,0.00170527]
[1642103341144,0.00284212,3257.0,3256.2,0.00170527]
[1642103341592,0.0022737,3256.9,3256.6,1.3905827]
[1642103341789,0.0022737,3256.9,3256.2,0.00170527]
[1642103341790,0.7699706,3256.9,3256.2,0.00170527]
[1642103341989,0.00170527,3256.8,3256.2,0.00170527]
[1642103342288,0.00113685,3256.7,3256.2,0.00170527]
[1642103342692,0.76778,3256.6,3256.2,0.00170527]
[1642103342990,0.7677796,3256.5,3256.2,0.00170527]
[1642103343590,0.76782,3256.4,3255.8,0.30397896]
[1642103343891,0.76782,3256.4,3255.9,0.00341054]
[1642103344092,0.767837,3256.3,3255.9,0.00341054]
[1642103344490,1.10494251,3256.1,3255.9,0.00341054]
[1642103344894,0.76786,3256.2,3255.7,0.00454738]
[1642103345142,0.7677891,3256.5,3255.8,0.03973288]
[1642103345336,0.1228,3256.7,3255.7,0.00454738]
[1642103345536,0.1228,3256.7,3255.9,0.00341054]
[1642103345741,0.1228,3256.7,3256.5,0.61065164]
[1642103345937,0.00170527,3256.8,3256.5,0.61065164]
[1642103346241,0.00113685,3256.7,3256.6,2.21166981]
[1642103346436,0.00113685,3256.7,3256.6,2.51166981]
[1642103347135,0.00113685,3256.7,3256.6,3.51166981]
[1642103347338,0.00113685,3256.7,3256.6,11.21166981]
[1642103347535,0.00113685,3256.7,3256.6,12.21166981]
[1642103350095,3.685e-05,3256.7,3256.6,10.76755]
[1642103350291,3.685e-05,3256.7,3256.6,14.76093545]
[1642103350493,0.1228,3258.2,3257.3,0.76729]
[1642103350691,0.1228,3258.2,3257.4,0.7673]
[1642103350895,3.1436,3258.7,3258.0,1.26179057]
[1642103350896,0.00795793,3258.1,3258.0,1.26179057]
[1642103351094,0.00795793,3258.1,3257.7,0.43866236]
[1642103351292,0.1227,3258.3,3257.4,0.3]
[1642103351495,0.1227,3258.3,3257.0,3.702928]
[1642103351496,0.00738951,3258.0,3257.0,3.702928]
[1642103351693,0.5647,3257.9,3256.8,3.955]
[1642103351894,18.46152108,3257.9,3256.0,7.022793]
[1642103352093,2.22048861,3257.0,3256.2,6.2]
[1642103352294,2.22048861,3257.0,3256.3,0.00227369]
[1642103352495,0.00113685,3256.9,3256.3,0.00227369]
[1642103352738,0.1228,3256.8,3256.3,0.00227369]
[1642103352935,0.12393685,3256.9,3256.2,0.00284212]
[1642103353136,0.76771,3256.8,3256.2,0.00284212]
[1642103353335,0.76771,3256.8,3256.3,1.21246416]
[1642103353336,0.7677501,3256.7,3256.3,1.21246416]
[1642103353736,0.7677501,3256.7,3256.4,0.00170527]
[1642103353935,0.00113685,3256.9,3256.4,0.00170527]
[1642103354237,0.00113685,3256.9,3256.4,0.76934527]
[1642103354637,0.00113685,3256.9,3256.5,0.00113685]
[1642103354842,1.1544649,3256.8,3256.5,0.00113685]
[1642103355238,0.8905628,3256.7,3256.5,0.00113685]
[1642103355437,0.8905628,3256.7,3256.2,0.00284212]
[1642103355638,0.8905628,3256.7,3256.0,0.77167896]
[1642103355838,0.7677628,3256.7,3256.0,0.77167896]
[1642103356044,0.7677628,3256.7,3256.1,0.00341054]
[1642103356045,1.20976,3256.6,3256.1,0.00341054]
[1642103356239,1.33256,3256.6,3256.1,0.00341054]
[1642103356492,1.487755,3255.9,3255.6,0.00625266]
[1642103356692,0.7679133,3255.9,3255.7,0.00568423]
[1642103356892,0.7679133,3255.9,3255.5,6.29602104]
[1642103356893,0.1228,3256.1,3255.6,0.00625266]
[1642103357093,0.442,3256.2,3255.6,0.00625266]
[1642103357592,0.76786,3256.1,3255.6,0.00625266]
[1642103357793,0.7679205,3255.8,3255.6,0.00625266]
[1642103358194,0.1228,3256.1,3255.6,0.00625266]
[1642103358395,1.20985,3256.2,3255.6,0.00625266]
[1642103359096,1.9776851,3256.2,3256.1,1.24037779]
[1642103359295,1.9776851,3256.2,3255.6,0.00625266]
[1642103359497,1.9776851,3256.2,3256.1,0.00341054]
[1642103359697,1.9776851,3256.2,3255.6,0.00625266]
[1642103360144,0.442,3256.2,3255.6,0.00625266]
[1642103360640,6.0222052,3256.7,3256.5,0.59692783]
[1642103360643,4.4866,3256.7,3256.5,0.59692783]
[1642103360837,3.3186,3256.7,3256.5,0.59692783]
[1642103361037,0.00113685,3256.9,3256.5,0.59692783]
[1642103361342,0.76880925,3256.9,3256.5,0.59692783]
[1642103361539,0.76880925,3256.9,3256.7,1.22531576]
[1642103361737,0.00113685,3256.9,3256.7,1.22531576]
[1642103362137,0.00113685,3256.9,3256.5,0.59692783]
[1642103362338,0.00113685,3256.9,3255.7,5.35746]
[1642103362339,0.00113685,3256.9,3255.7,3.8222]
[1642103362537,0.00113685,3256.9,3255.7,4.1222]
[1642103362737,0.00113685,3256.9,3255.9,0.00454739]
[1642103362938,0.76772,3256.8,3255.9,0.00454739]
[1642103363138,0.76772,3256.8,3256.0,1.41869333]
[1642103363338,0.00113685,3256.9,3256.8,1.50675136]
[1642103364193,0.00113685,3256.9,3256.6,0.58099304]
[1642103364492,0.00113685,3256.9,3256.2,0.013198]
[1642103364691,0.7677269,3256.8,3256.2,0.013198]
[1642103364891,0.7677269,3256.8,3256.3,0.00227369]
[1642103365291,0.00113685,3256.9,3256.3,0.00227369]
[1642103365292,4.43006069,3256.7,3256.3,0.00227369]
[1642103365493,0.89055,3256.6,3256.3,0.00227369]
[1642103365692,2.89282803,3256.5,3255.8,0.00511581]
[1642103365891,0.7678652,3256.3,3255.8,0.00511581]
[1642103366293,0.7678652,3256.3,3255.6,0.00625266]
[1642103366696,1.32007806,3255.8,3255.6,0.00625266]
[1642103366896,0.76789,3256.1,3255.6,0.00625266]
[1642103367295,5.96426843,3256.5,3255.6,0.00625266]
[1642103367296,6.01024872,3256.5,3255.6,0.00625266]
[1642103367740,3.0714404,3256.5,3255.6,0.00625266]
[1642103367940,1.39656362,3255.9,3255.7,0.011829]
[1642103368139,0.76783,3256.3,3255.7,0.011829]
[1642103368341,0.76783,3256.3,3255.8,0.00511581]
[1642103368642,0.7677883,3256.5,3255.8,0.00511581]
[1642103368942,4.3338,3256.6,3255.8,0.00511581]
[1642103369341,1.52655816,3256.3,3255.9,1.32311269]
[1642103369543,1.52655816,3256.3,3255.9,0.3]
[1642103369744,1.52655816,3256.3,3256.0,0.00397896]
[1642103370744,1.52655816,3256.3,3255.8,0.00511581]
[1642103370942,1.52655816,3256.3,3255.6,0.00625266]
[1642103371588,1.52655816,3256.3,3255.8,0.59055733]
[1642103371791,0.1228,3256.7,3255.8,2.13041304]
[1642103371988,0.1228,3256.7,3255.9,0.00454739]
[1642103372190,4.53583685,3256.9,3256.3,0.019353]
[1642103372389,4.41303685,3256.9,3256.3,0.019353]
[1642103372591,4.41303685,3256.9,3256.4,0.00170527]
[1642103372792,3.23513685,3256.9,3256.4,0.00170527]
[1642103372987,3.23513685,3256.9,3256.8,1.43836862]
[1642103373188,0.00113685,3256.9,3256.8,1.93564803]
[1642103373388,0.00113685,3256.9,3256.8,2.23564803]
[1642103373987,0.00113685,3256.9,3256.8,10.73564803]
[1642103374391,0.00113685,3256.9,3256.8,11.73564803]
[1642103377739,0.00113685,3256.9,3256.8,1.93564803]
[1642103377938,0.76751,3257.6,3256.9,3.95]
[1642103378138,0.26099997,3257.7,3256.9,3.95]
[1642103378338,0.00170527,3257.2,3256.9,3.95]
[1642103378737,0.00113684,3257.1,3256.9,3.95]
[1642103378996,1.47290192,3257.1,3256.9,0.3]
[1642103379296,0.1228,3257.0,3256.4,0.00170527]
[1642103379498,1.47176508,3257.1,3256.4,0.00170527]
[1642103379698,1.47176508,3257.1,3256.4,0.00284212]
[1642103379901,0.1228,3257.0,3256.4,0.00284212]
[1642103380298,1.47176508,3257.1,3256.4,0.00284212]
[1642103380499,4.89002513,3257.0,3256.4,0.00284212]
[1642103380697,4.24519513,3257.0,3256.4,0.00284212]
[1642103380898,1.3324307,3257.0,3256.4,0.00284212]
[1642103381401,0.76772,3256.7,3256.4,0.00284212]
[1642103381598,1.55598769,3256.6,3256.4,0.00284212]
[1642103381798,2.32372019,3256.6,3256.4,0.00284212]
[1642103382663,3.04032056,3256.5,3256.4,0.00284212]
[1642103382860,4.77926599,3256.5,3256.4,0.00284212]
[1642103383056,5.77926599,3256.5,3256.1,0.00454739]
[1642103383257,0.7678533,3256.4,3256.1,0.00454739]
[1642103383458,0.1228,3256.3,3256.1,0.00454739]
[1642103383856,3.00300033,3256.3,3256.1,0.00454739]
[1642103384057,0.1228,3256.3,3256.1,0.00454739]
[1642103384358,0.89066,3256.3,3256.1,0.00454739]
[1642103384759,0.76786,3256.3,3256.1,0.00454739]
[1642103385860,2.12078769,3256.6,3256.1,0.00454739]
[1642103386060,2.12078769,3256.6,3256.1,0.77219739]
[1642103386061,1.55598769,3256.6,3256.1,0.77219739]
[1642103386259,0.1228,3256.9,3256.4,0.46991587]
[1642103386499,3.8411,3257.1,3256.4,0.76991587]
[1642103386500,0.1228,3257.1,3256.4,0.76991587]
[1642103386696,0.1228,3257.1,3256.5,0.0022737]
[1642103386898,0.1228,3257.3,3256.5,0.0022737]
[1642103387102,1.19567896,3257.6,3257.2,1.36609219]
[1642103387103,0.1228,3257.5,3257.2,1.36609219]
[1642103387298,0.00341054,3257.5,3256.8,0.017084]
[1642103387497,0.00284211,3257.4,3256.8,0.017084]
[1642103387698,2.63893414,3257.2,3256.8,0.017084]
[1642103388197,1.333227,3257.1,3256.6,0.311864]
[1642103388599,1.333227,3257.1,3256.7,0.00113685]
[1642103388899,3.68817628,3257.0,3256.7,0.00113685]
[1642103389099,0.7676417,3257.0,3256.7,0.00113685]
[1642103389499,4.99718773,3257.0,3256.7,0.00113685]
[1642103389706,0.1228,3256.9,3256.7,0.00113685]
[1642103389901,1.1228,3256.9,3256.3,0.00341054]
[1642103390152,0.7677811,3256.7,3256.3,0.00341054]
[1642103390343,0.76779,3256.5,3256.3,0.00341054]
[1642103390744,1.51319076,3256.4,3256.3,0.00341054]
[1642103390944,1.51319076,3256.4,3256.1,0.00454739]
[1642103391345,0.1228,3256.3,3255.5,0.05966143]
[1642103391544,0.89174274,3256.3,3255.8,0.009093]
[1642103391744,0.76783,3256.2,3255.8,0.009093]
[1642103392348,2.9227921,3256.1,3255.8,0.009093]
[1642103392546,3.6906213,3256.1,3255.8,0.009093]
[1642103392746,0.76791,3256.0,3255.8,0.009093]
[1642103392944,0.76791,3256.0,3255.6,0.00284212]
[1642103393347,1.48638976,3255.9,3255.6,0.00284212]
[1642103393994,1.48638976,3255.9,3255.6,0.77067212]
[1642103394193,0.00113684,3256.3,3255.6,0.77067212]
[1642103394395,0.00113684,3256.3,3255.7,0.00227369]
[1642103394897,0.00113684,3256.3,3255.9,0.76774]
[1642103395694,0.00113684,3256.3,3255.9,0.71774]
[1642103396295,1.27793202,3256.1,3255.9,0.71774]
[1642103398041,1.27793202,3256.1,3256.0,0.3]
[1642103398546,2.48777202,3256.1,3255.7,0.00227369]
[1642103398743,0.1228,3256.0,3255.7,0.00227369]
[1642103399741,1.5359515,3255.9,3255.7,0.00227369]
[1642103400142,1.5359515,3255.9,3255.5,0.02102812]
[1642103400343,1.9779515,3255.9,3255.5,0.02102812]
[1642103400544,0.442,3255.9,3255.5,0.02102812]
[1642103400844,2.7021372,3255.8,3255.5,0.01193512]
[1642103401046,0.1228,3255.7,3255.5,0.01193512]
[1642103401246,2.7021372,3255.8,3255.3,0.04377812]
[1642103401247,2.8249372,3255.8,3255.3,0.04377812]
[1642103401494,0.521,3255.8,3255.3,0.04377812]
[1642103401694,0.1228,3255.8,3255.4,0.00170527]
[1642103402297,1.19623684,3256.3,3255.5,0.011381]
[1642103402499,1.19623684,3256.3,3255.5,0.311381]
[1642103402695,0.00284211,3256.2,3255.6,0.76769]
[1642103402896,0.00284211,3256.2,3255.7,0.3]
[1642103403094,0.00227369,3256.1,3255.7,0.3]
[1642103403295,0.00227369,3256.1,3255.9,1.5526065]
[1642103403498,0.00170527,3256.0,3255.8,0.778813]
[1642103403696,0.00170527,3256.0,3255.9,0.3]
[1642103403895,1.35112353,3256.3,3255.8,0.3]
[1642103404196,0.00113684,3255.9,3255.8,0.3]
[1642103404598,0.00511581,3256.6,3255.8,0.25]
[1642103404800,0.00511581,3256.6,3255.9,0.76775]
[1642103405004,0.00454738,3256.5,3255.8,0.25]
[1642103405246,1.18115442,3256.4,3255.7,0.009093]
[1642103405445,0.7678377,3256.2,3255.7,0.009093]
[1642103405641,0.76784,3256.1,3255.7,0.009093]
[1642103405844,0.77011369,3256.1,3255.7,0.009093]
[1642103406043,0.00170527,3256.0,3255.5,0.011381]
[1642103406343,2.3037516,3256.2,3255.5,0.011381]
[1642103406744,0.00227369,3256.1,3255.5,0.011381]
[1642103407145,0.76795,3255.8,3255.5,0.011381]
[1642103407346,0.76795,3255.8,3255.4,0.00170527]
[1642103408544,0.76797,3255.6,3255.4,0.00170527]
[1642103409194,0.442,3255.9,3255.4,0.00170527]
[1642103409795,0.442,3255.9,3255.4,0.76956527]
[1642103409995,0.442,3255.9,3255.4,1.06956527]
[1642103410204,1.55692636,3256.0,3255.5,0.00113685]
[1642103410398,0.00170527,3256.0,3255.5,0.30113685]
[1642103410598,0.00170527,3256.0,3255.5,0.25113685]
[1642103411000,0.00170527,3256.0,3255.5,0.00113685]
[1642103411205,0.00170527,3256.0,3255.6,0.76783]
[1642103411399,0.00170527,3256.0,3255.7,2.69131471]
[1642103411603,0.00170527,3256.0,3255.8,1.0]
[1642103411799,0.00170527,3256.0,3255.8,1.3]
[1642103412098,0.00170527,3256.0,3255.8,1.6]
[1642103412297,0.00170527,3256.0,3255.8,2.36768]
[1642103412780,0.00170527,3256.0,3255.5,0.00113685]
[1642103412781,0.01400133,3256.0,3255.5,0.00113685]
[1642103413076,0.00170527,3256.0,3255.5,0.00113685]
[1642103413275,4.1184,3257.1,3255.5,0.00113685]
[1642103413276,4.1184,3257.1,3255.6,10.377919]
[1642103413477,3.7718,3257.6,3255.6,10.377919]
[1642103413478,0.1228,3257.5,3257.4,0.44255104]
[1642103413678,0.442,3257.9,3257.4,0.44255104]
[1642103413879,7.00528215,3258.2,3257.4,0.44255104]
[1642103413880,6.23791195,3258.2,3257.5,0.010142]
[1642103414077,4.478e-05,3258.0,3257.7,0.011749]
[1642103414276,6.23791195,3258.2,3257.9,0.76702]
[1642103414476,6.23791195,3258.2,3258.0,0.0530777]
[1642103414680,0.00284212,3258.1,3258.0,0.0530777]
[1642103414876,0.00284212,3258.1,3258.0,0.012709]
[1642103415079,3.03908957,3258.5,3258.0,0.012709]
[1642103415080,3.03908957,3258.5,3258.1,9.6]
[1642103415286,0.47328194,3258.5,3258.3,0.76701]
[1642103415481,0.00170527,3258.4,3258.3,6.426272]
[1642103415681,0.00170527,3258.4,3258.3,6.50426835]
[1642103415877,3.79886196,3258.7,3258.3,6.50426835]
[1642103416078,3.79886196,3258.7,3258.5,1.2621094]
[1642103416279,0.00284212,3258.6,3258.5,1.2621094]
[1642103416497,0.00284212,3258.6,3258.5,5.8621094]
[1642103416698,0.00284212,3258.6,3258.5,6.8621094]
[1642103416898,0.00284212,3258.6,3258.5,2.2621094]
[1642103417098,0.00284212,3258.6,3258.5,1.2621094]
[1642103417497,0.00284212,3258.6,3258.5,4.6621094]
[1642103417698,0.00284212,3258.6,3258.5,5.6621094]
[1642103418098,5.44641981,3259.5,3258.6,6.2]
[1642103418297,3.914841,3259.5,3258.5,2.2621094]
[1642103418499,0.00454738,3259.4,3258.6,0.3]
[1642103418706,0.00454738,3259.4,3257.9,3.81001]
[1642103418707,18.6571431,3259.3,3257.4,2.87875456]
[1642103418898,0.134816,3259.2,3257.2,11.98065453]
[1642103419200,0.00631569,3259.1,3257.3,0.00738951]
[1642103419398,0.1227,3259.0,3257.3,0.00738951]
[1642103419600,0.12497369,3259.0,3257.3,0.00738951]
[1642103419899,1.35104722,3258.2,3257.3,0.00738951]
[1642103420151,0.1227,3258.8,3257.7,0.76726]
[1642103420557,17.89,3258.6,3257.8,0.00454739]
[1642103420754,0.1227,3258.5,3257.8,0.00454739]
[1642103420951,17.89,3258.4,3257.3,0.00738951]
[1642103421151,1.5647,3258.5,3257.1,0.00852636]
[1642103421152,1.19485028,3257.4,3257.1,0.00852636]
[1642103421753,0.1228,3257.9,3257.1,0.00852636]
[1642103421951,0.1227,3258.1,3257.1,0.00852636]
[1642103422151,0.1227,3258.1,3257.3,0.44415932]
[1642103422352,0.76742,3258.0,3257.1,0.00852636]
[1642103422652,1.16287124,3257.9,3257.5,1.13926726]
[1642103422853,1.16287124,3257.9,3257.3,0.76736]
[1642103423054,1.16287124,3257.9,3257.6,0.00568424]
[1642103423251,1.16287124,3257.9,3257.4,0.00682109]
[1642103423452,3.00119121,3257.8,3257.4,0.00682109]
[1642103423653,1.16287124,3257.9,3257.4,0.00682109]
[1642103423911,1.16287124,3257.9,3257.0,1.0285236]
[1642103423912,1.16287124,3257.9,3257.2,1.4743816]
[1642103424302,4.14121461,3257.9,3257.3,0.00738951]
[1642103424503,3.00798042,3257.8,3257.3,0.00738951]
[1642103424902,1.16287124,3257.9,3257.3,0.00738951]
[1642103424903,5.71160563,3257.9,3257.3,0.00738951]
[1642103425302,0.1227,3257.8,3257.3,0.00738951]
[1642103425502,2.81611922,3257.9,3257.3,0.00738951]
[1642103425806,2.69341922,3257.9,3257.3,0.00738951]
[1642103426904,1.53054798,3257.9,3257.3,0.00738951]
[1642103427506,0.1227,3258.1,3257.3,0.00738951]
[1642103427749,0.1227,3258.2,3257.3,0.00738951]
[1642103428353,0.1227,3258.2,3258.0,1.79730613]
[1642103428550,0.1227,3258.2,3258.0,2.09730613]
[1642103428749,0.00113684,3258.8,3258.1,0.00284212]
[1642103428750,0.1227,3258.7,3258.1,0.00284212]
[1642103429049,0.00113684,3258.8,3258.1,0.00284212]
[1642103429247,0.12383684,3258.8,3258.1,0.00284212]
[1642103429448,1.53054798,3258.5,3258.1,0.00284212]
[1642103429949,1.53054798,3258.5,3258.2,0.76713]
[1642103430149,1.53054798,3258.5,3258.2,1.06713]
[1642103430353,1.53054798,3258.5,3258.3,0.00170527]
[1642103431802,0.00113684,3258.8,3258.4,0.767]
[1642103432100,0.00113684,3258.8,3258.4,1.067]
[1642103432301,0.00113684,3258.8,3258.4,0.3]
[1642103432502,0.00113684,3258.8,3258.3,0.00170527]
[1642103432700,1.23545618,3258.7,3258.3,0.00170527]
[1642103432901,1.23545618,3258.7,3258.1,1.3]
[1642103432902,1.23545618,3258.7,3258.2,0.0022737]
[1642103433603,1.23545618,3258.7,3258.1,1.00284212]
[1642103434001,0.00113684,3258.8,3258.2,0.0022737]
[1642103434402,2.63802078,3258.6,3258.2,0.0022737]
[1642103435152,3.80518063,3258.6,3258.2,0.0022737]
[1642103435354,1.16715985,3258.6,3258.2,0.0022737]
[1642103435548,0.1227,3258.7,3258.2,0.0022737]
[1642103435749,0.1227,3258.7,3258.1,0.00284212]
[1642103435949,0.12383684,3258.8,3258.1,0.00284212]
[1642103436151,0.12383684,3258.8,3258.1,0.46702043]
[1642103436349,0.12383684,3258.8,3258.2,0.76712]
[1642103436350,2.63802078,3258.5,3258.2,0.76712]
[1642103436550,2.63802078,3258.5,3258.2,2.0693937]
[1642103436748,2.63802078,3258.5,3258.3,0.00170527]
[1642103437251,2.63915762,3258.8,3258.3,0.00170527]
[1642103438050,2.63915762,3258.8,3258.4,0.76701]
[1642103438250,2.63915762,3258.8,3258.5,1.19096334]
[1642103438251,0.00113684,3258.8,3258.5,1.19096334]
[1642103439604,0.00113684,3258.8,3258.5,2.19096334]
[1642103440005,0.00113684,3258.8,3258.5,1.19096334]
[1642103440209,0.00113684,3258.8,3258.5,2.19096334]
[1642103440612,0.00113684,3258.8,3258.6,0.76691]
[1642103440806,0.00113684,3258.8,3258.5,1.19096334]
[1642103442206,0.00113684,3258.8,3258.6,0.7669097]
[1642103442404,0.00113684,3258.8,3258.5,1.19096334]
[1642103442852,0.00113684,3258.8,3258.6,0.442]
[1642103443053,2.63802078,3259.0,3258.8,0.01123092]
[1642103443253,2.63802078,3259.0,3258.9,10.042]
[1642103443454,2.30121965,3259.7,3259.0,8.75]
[1642103443652,2.30121965,3259.7,3259.1,1.9693019]
[1642103443852,2.30121965,3259.7,3259.2,0.3]
[1642103444058,2.30121965,3259.7,3259.3,1.56389296]
[1642103444253,2.30121965,3259.7,3259.4,2.87482973]
[1642103444457,2.68099287,3259.9,3259.5,0.742]
[1642103444653,6.80938401,3260.4,3259.6,0.01270543]
[1642103444853,6.80938401,3260.4,3259.8,9.6]
[1642103445053,6.80938401,3260.4,3260.1,0.78368926]
[1642103445054,0.67837401,3260.4,3260.1,0.78368926]
[1642103445253,3.48485822,3261.0,3260.3,9.6]
[1642103445459,3.43485822,3261.0,3260.3,11.85384317]
[1642103445655,0.00284212,3260.8,3260.4,2.5359401]
[1642103445854,0.00284212,3260.8,3260.5,1.53266]
[1642103446055,0.0022737,3260.7,3260.5,1.83266]
[1642103446514,0.00170528,3260.6,3260.5,1.83266]
[1642103446914,0.00341055,3260.6,3260.5,1.83266]
[1642103447114,0.00341055,3260.6,3260.5,6.28266]
[1642103448114,0.00341055,3260.6,3260.5,12.43266]
[1642103449219,0.00341055,3260.6,3260.5,6.28266]
[1642103449618,0.00341055,3260.6,3260.5,2.83266]
[1642103449820,0.00341055,3260.6,3260.5,1.3]
[1642103450262,0.00341055,3260.6,3260.3,1.53313]
[1642103450456,0.01300599,3260.5,3259.2,5.31124015]
[1642103450656,0.1226,3260.4,3259.2,5.31124015]
[1642103450956,0.00744279,3260.3,3259.7,0.00341054]
[1642103451158,1.15750703,3260.1,3259.8,0.45088221]
[1642103451558,1.15750703,3260.1,3259.9,0.00227369]
[1642103451956,1.15750703,3260.1,3259.6,0.00397896]
[1642103452558,0.1227,3260.0,3259.6,0.00397896]
[1642103452758,0.1227,3260.0,3259.7,1.58192961]
[1642103453159,0.1227,3260.0,3259.8,0.00284211]
[1642103453765,0.1227,3260.4,3259.8,0.76958211]
[1642103454002,0.1227,3260.4,3259.9,0.3]
[1642103454202,0.1227,3260.4,3259.9,0.30227369]
[1642103454406,0.1227,3260.4,3260.0,0.00170527]
[1642103454801,1.00748095,3260.3,3260.0,0.7667]
[1642103455002,0.1226,3260.2,3260.0,0.7667]
[1642103455301,0.1226,3260.2,3260.1,0.30113684]
[1642103455501,1.00748095,3260.3,3260.1,0.30113684]
[1642103455702,0.1226,3260.4,3260.1,0.30113684]
[1642103457007,1.10863346,3260.3,3260.1,0.30113684]
[1642103457403,1.10863346,3260.3,3260.1,0.00113684]
[1642103457654,0.1226,3260.2,3260.1,0.00113684]
[1642103457851,0.1226,3260.2,3260.0,0.00170527]
[1642103458052,1.10863346,3260.3,3260.0,0.00170527]
[1642103458852,1.10863346,3260.3,3260.0,0.30170527]
[1642103459054,1.10863346,3260.3,3260.0,0.60170527]
[1642103459354,1.10863346,3260.3,3260.1,0.00113684]
[1642103459954,0.00113685,3260.5,3260.1,0.00113684]
[1642103461605,0.00113685,3260.5,3260.3,1.27978808]
[1642103461804,0.00113685,3260.5,3260.3,2.04639808]
[1642103462002,0.00113685,3260.5,3260.3,2.64639808]
[1642103462206,0.00113685,3260.5,3260.3,1.36661]
[1642103462405,0.00113685,3260.5,3260.3,0.6]
[1642103462606,0.00113685,3260.5,3260.1,0.30113684]
[1642103462804,0.00113685,3260.5,3260.1,0.00113684]
[1642103463404,0.00113685,3260.5,3260.1,0.30113684]
[1642103463605,0.00113685,3260.5,3260.3,1.27830153]
[1642103464011,0.00113685,3260.5,3260.3,1.87830153]
[1642103465154,0.00113685,3260.5,3260.3,3.41140153]
[1642103466556,0.00113685,3260.5,3260.4,10.6]
[1642103467157,0.00113685,3260.5,3260.3,3.41140153]
[1642103467360,0.00113685,3260.5,3260.4,5.95]